bitfinex/quotes_SOLUSD_20250617
["timestamp","ask_amount","ask_price","bid_price","bid_amount"]
[1750179333012,26.0,146.44,146.38,16.95659699]
[1750179333176,16.95659699,146.42,146.38,23.7880252]
[1750179333378,16.95659699,146.43,146.38,6.83142821]
[1750179333606,17.06601133,146.49,146.41,18.64964886]
[1750179333781,26.0,146.46,146.42,16.95659699]
[1750179333974,155.01379746,146.55,146.46,0.14216157]
[1750179334180,6.82407533,146.54,146.5,18.79181043]
[1750179334479,1.5625,146.58,146.52,18.79181043]
[1750179334676,16.95659699,146.55,146.52,0.14216157]
[1750179334890,16.95659699,146.55,146.52,18.79181043]
[1750179335711,24.54673842,146.57,146.52,17.09875856]
[1750179335998,16.95659699,146.56,146.53,18.64964886]
[1750179336472,16.95659699,146.56,146.52,18.79181043]
[1750179336670,17.72389685,146.57,146.55,18.79181043]
[1750179336875,17.72389685,146.57,146.55,35.74840742]
[1750179337095,17.72389685,146.57,146.56,35.74840742]
[1750179337286,17.72389685,146.57,146.56,42.57155152]
[1750179337518,17.72389685,146.57,146.56,18.79181043]
[1750179338114,34.68049384,146.57,146.56,18.79181043]
[1750179338523,17.72389685,146.57,146.56,18.79181043]
[1750179338735,17.72389685,146.57,146.56,35.74840742]
[1750179338907,17.72389685,146.57,146.56,18.79181043]
[1750179339806,24.54657543,146.57,146.56,0.14216157]
[1750179340115,34.68049384,146.57,146.56,0.14216157]
[1750179340315,41.50317242,146.57,146.52,18.64964886]
[1750179340507,17.72389685,146.57,146.53,0.14216157]
[1750179340709,34.68049384,146.57,146.53,0.14216157]
[1750179340915,16.95659699,146.56,146.53,0.14216157]
[1750179341538,0.14216157,146.51,146.41,16.95659699]
[1750179341839,16.95659699,146.47,146.44,0.14216157]
[1750179342224,16.95659699,146.46,146.42,16.95659699]
[1750179342431,16.95659699,146.47,146.42,16.95659699]
[1750179342606,16.95659699,146.47,146.43,18.64964886]
[1750179342938,16.56419685,146.48,146.42,16.95659699]
[1750179342939,16.95659699,146.46,146.42,16.95659699]
[1750179343232,16.95659699,146.45,146.41,18.64964886]
[1750179343422,6.82841059,146.45,146.41,18.64964886]
[1750179343622,23.78500758,146.45,146.42,0.14216157]
[1750179343815,16.95659699,146.44,146.41,18.64964886]
[1750179344022,6.82841059,146.45,146.41,18.64964886]
[1750179344222,16.95659699,146.44,146.42,0.14216157]
[1750179344538,6.82841059,146.45,146.38,18.64964886]
[1750179344539,16.95659699,146.43,146.38,18.64964886]
[1750179344722,16.95659699,146.41,146.38,0.14216157]
[1750179345041,16.95659699,146.43,146.38,16.95659699]
[1750179345239,16.95659699,146.43,146.41,0.14216157]
[1750179345442,6.82966807,146.42,146.41,0.14216157]
[1750179345757,6.82966807,146.42,146.36,12.88197958]
[1750179345758,23.78626506,146.42,146.38,16.95659699]
[1750179346053,16.95659699,146.41,146.37,18.64964886]
[1750179346259,16.95659699,146.4,146.36,35.60624585]
[1750179346445,16.95659699,146.38,146.36,18.64964886]
[1750179346614,16.95659699,146.37,146.34,18.64964886]
[1750179346813,16.95659699,146.37,146.35,0.14216157]
[1750179347046,16.95659699,146.38,146.34,35.60624585]
[1750179347221,16.95659699,146.38,146.34,18.64964886]
[1750179347417,32.83151232,146.39,146.35,0.14216157]
[1750179347619,16.95659699,146.37,146.33,18.64964886]
[1750179347820,16.95659699,146.36,146.33,18.64964886]
[1750179348129,16.95659699,146.37,146.34,0.14216157]
[1750179348315,16.95659699,146.37,146.33,42.44009339]
[1750179348758,26.0,146.41,146.37,0.14216157]
[1750179348940,23.78594081,146.43,146.4,18.79181043]
[1750179349117,4.96973937,146.42,146.32,3.54422722]
[1750179349321,6.83194258,146.38,146.32,3.54422722]
[1750179349524,16.95659699,146.35,146.31,18.64964886]
[1750179349753,16.95659699,146.35,146.32,0.14216157]
[1750179350253,32.83121033,146.39,146.32,17.09875856]
[1750179350459,16.95659699,146.39,146.34,17.09875856]
[1750179351133,16.95659699,146.38,146.34,18.79181043]
[1750179351337,4.96816718,146.4,146.34,25.62481739]
[1750179351547,16.95659699,146.37,146.34,18.79181043]
[1750179351867,16.95659699,146.39,146.34,42.58169995]
[1750179352221,4.96884701,146.4,146.36,18.79181043]
[1750179352554,16.95659699,146.39,146.36,18.79181043]
[1750179352729,16.95659699,146.37,146.36,0.14216157]
[1750179354337,16.95659699,146.37,146.35,0.14216157]
[1750179354825,16.95659699,146.38,146.35,0.14216157]
[1750179355025,16.95659699,146.4,146.35,17.09875856]
[1750179355459,16.95659699,146.39,146.35,0.14216157]
[1750179355625,16.95659699,146.39,146.35,6.97505064]
[1750179355820,16.95659699,146.39,146.37,0.14216157]
[1750179356263,16.95659699,146.4,146.37,0.14216157]
[1750179356604,16.95659699,146.41,146.38,0.14216157]
[1750179356754,16.95659699,146.41,146.38,18.79181043]
[1750179357489,46.09495155,146.45,146.38,0.14216157]
[1750179357490,16.95659699,146.39,146.38,0.14216157]
[1750179357882,16.95659699,146.4,146.38,18.79181043]
[1750179358385,32.82876327,146.44,146.38,25.62325985]
[1750179358552,16.95659699,146.41,146.38,18.79181043]
[1750179358761,16.95659699,146.41,146.38,25.62325427]
[1750179358955,13.2666715,146.45,146.38,25.62325427]
[1750179358956,16.95659699,146.43,146.38,42.57985126]
[1750179359266,20.0950499,146.45,146.38,25.62332527]
[1750179359267,16.95659699,146.41,146.38,25.62332527]
[1750179359880,16.95659699,146.42,146.38,42.57992226]
[1750179360360,16.95659699,146.41,146.37,0.14216157]
[1750179360557,6.82886277,146.44,146.31,3.54489878]
[1750179360558,16.95659699,146.38,146.31,3.54489878]
[1750179360782,16.95659699,146.32,146.24,23.79467138]
[1750179360971,2.33039526,146.37,146.27,16.95659699]
[1750179361279,1.6448,146.38,146.3,16.95659699]
[1750179361482,23.78895447,146.37,146.31,6.83473589]
[1750179361688,16.95659699,146.36,146.32,35.60624585]
[1750179361852,16.95659699,146.33,146.24,17.09436763]
[1750179362053,6.83212566,146.37,146.24,6.83807439]
[1750179362054,16.95659699,146.29,146.24,6.83807439]
[1750179362361,16.95659699,146.26,146.23,3.54546419]
[1750179362670,16.95659699,146.24,146.21,6.83917932]
[1750179362871,16.95659699,146.25,146.22,18.79181043]
[1750179363071,16.95659699,146.24,146.2,7.05302372]
[1750179363396,26.0,146.27,146.2,6.83978137]
[1750179363564,32.83694664,146.27,146.2,23.79637836]
[1750179363765,16.95659699,146.24,146.2,6.83978137]
[1750179363972,16.95659699,146.21,146.17,10.38742196]
[1750179364170,16.95659699,146.2,146.13,26.36784333]
[1750179364384,16.95659699,146.2,146.16,16.95659699]
[1750179364573,16.95659699,146.2,146.17,18.64964886]
[1750179364983,16.95659699,146.19,146.14,10.38835581]
[1750179365198,16.95659699,146.18,146.14,16.95659699]
[1750179365490,26.0,146.24,146.17,16.95659699]
[1750179365691,16.95659699,146.21,146.18,0.14216157]
[1750179365871,16.95659699,146.2,146.18,0.14216157]
[1750179366496,6.8366719,146.27,146.2,0.14216157]
[1750179366791,16.02239685,146.26,146.24,18.79181043]
[1750179366997,32.97899384,146.26,146.24,0.14216157]
[1750179367588,32.97906962,146.25,146.24,0.14216157]
[1750179367971,39.81667645,146.25,146.24,0.14216157]
[1750179368200,39.81667645,146.25,146.14,59.34432314]
[1750179368369,16.95659699,146.21,146.17,16.95659699]
[1750179368562,16.95659699,146.23,146.19,35.60624585]
[1750179368768,16.02247263,146.25,146.22,0.14216157]
[1750179369069,16.95659699,146.24,146.22,0.14216157]
[1750179369478,32.97906962,146.25,146.22,0.14216157]
[1750179369694,16.02247263,146.25,146.22,0.14216157]
[1750179369906,16.95659699,146.24,146.22,0.14216157]
[1750179370280,16.95659699,146.23,146.22,0.14216157]
[1750179370603,16.95659699,146.24,146.22,0.14216157]
[1750179370788,32.97906962,146.25,146.21,17.09875856]
[1750179370973,16.02247263,146.25,146.23,0.14216157]
[1750179371177,16.95659699,146.24,146.23,0.14216157]
[1750179371579,30.38112944,146.24,146.23,0.14216157]
[1750179371776,37.21920383,146.24,146.23,0.14216157]
[1750179372091,13.42453245,146.24,146.23,0.14216157]
[1750179372302,13.42453245,146.24,146.23,18.79181043]
[1750179372466,13.42453245,146.24,146.23,35.74840742]
[1750179372673,13.42453245,146.24,146.23,42.58694944]
[1750179373168,37.21921738,146.24,146.16,16.95659699]
[1750179373367,30.38112944,146.24,146.2,16.95659699]
[1750179373597,27.65544944,146.23,146.21,0.14216157]
[1750179373968,10.69885245,146.22,146.21,0.14216157]
[1750179374898,10.69885245,146.22,146.21,18.79181043]
[1750179375995,10.69885245,146.22,146.21,35.74840742]
[1750179376171,10.69885245,146.22,146.21,18.79181043]
[1750179376372,27.65544944,146.22,146.21,18.79181043]
[1750179376691,34.49453618,146.22,146.19,18.79181043]
[1750179376867,16.95659699,146.2,146.19,18.79181043]
[1750179377065,17.53793919,146.22,146.19,0.14216157]
[1750179377292,16.95659699,146.2,146.12,3.54442201]
[1750179377473,16.95659699,146.14,146.12,3.54442201]
[1750179377677,16.95659699,146.14,146.1,6.3809]
[1750179377891,23.80007259,146.13,146.1,3.54813863]
[1750179378065,6.84279517,146.14,146.1,3.54813863]
[1750179378500,16.95659699,146.13,146.1,3.54813863]
[1750179378682,16.95659699,146.13,146.11,18.64964886]
[1750179379203,16.95659699,146.13,146.12,0.14216157]
[1750179379405,6.84279517,146.14,146.09,5.68020838]
[1750179379622,23.79939216,146.14,146.09,5.68020838]
[1750179379770,17.10276592,146.18,146.1,35.60624585]
[1750179379970,16.95659699,146.14,146.11,0.14216157]
[1750179380189,23.94472189,146.17,146.11,0.14216157]
[1750179380397,16.95659699,146.12,146.11,0.14216157]
[1750179380794,16.95659699,146.13,146.11,0.14216157]
[1750179381107,16.95659699,146.12,146.11,0.14216157]
[1750179381807,23.94472189,146.17,146.11,0.14216157]
[1750179382369,16.95659699,146.12,146.11,0.14216157]
[1750179383076,16.95659699,146.13,146.11,0.14216157]
[1750179383279,6.84134911,146.17,146.11,17.09875856]
[1750179383481,16.95659699,146.15,146.11,0.14216157]
[1750179383691,16.95659699,146.16,146.11,0.14216157]
[1750179383986,16.95659699,146.16,146.13,0.14216157]
[1750179384196,6.84090653,146.18,146.13,17.09875856]
[1750179384502,16.95659699,146.17,146.15,0.14216157]
[1750179384811,6.84044584,146.19,146.15,0.14216157]
[1750179384975,16.95659699,146.19,146.15,0.14216157]
[1750179385174,6.83947746,146.21,146.19,0.14216157]
[1750179385498,27.65544944,146.22,146.19,0.14216157]
[1750179385687,16.95659699,146.21,146.19,0.14216157]
[1750179385883,10.69885245,146.22,146.21,0.14216157]
[1750179386197,10.69885245,146.22,146.21,18.79181043]
[1750179386783,10.69885245,146.22,146.21,35.74840742]
[1750179387597,10.69885245,146.22,146.21,18.79181043]
[1750179387781,10.69885245,146.22,146.21,35.74840742]
[1750179387990,27.65544944,146.22,146.21,18.79181043]
[1750179388899,10.69885245,146.22,146.21,35.74840742]
[1750179389078,10.55675245,146.22,146.21,35.74840742]
[1750179389425,10.55675245,146.22,146.21,18.79181043]
[1750179389711,10.55675245,146.22,146.21,42.58788488]
[1750179390415,23.79129863,146.32,146.23,0.42648471]
[1750179390602,16.95659699,146.31,146.28,18.79181043]
[1750179391600,16.95659699,146.3,146.28,0.14216157]
[1750179391777,33.26931075,146.35,146.3,18.79181043]
[1750179391778,10.18210485,146.35,146.3,18.79181043]
[1750179391980,10.18210485,146.35,146.34,0.14216157]
[1750179392388,10.18210485,146.35,146.34,18.79181043]
[1750179393320,27.13870184,146.35,146.34,18.79181043]
[1750179393677,33.97163658,146.35,146.3,0.14216157]
[1750179393897,16.95659699,146.31,146.29,18.64964886]
[1750179394195,17.01503959,146.35,146.3,18.79181043]
[1750179394395,16.95659699,146.34,146.3,18.79181043]
[1750179394632,17.01503959,146.35,146.3,0.14216157]
[1750179394802,16.95659699,146.33,146.3,18.79181043]
[1750179395190,16.95659699,146.32,146.3,0.14216157]
[1750179395621,10.18210485,146.35,146.3,17.09875856]
[1750179395925,27.13870184,146.35,146.32,18.79181043]
[1750179396223,16.95659699,146.34,146.32,0.14216157]
[1750179396525,16.95659699,146.33,146.32,0.14216157]
[1750179397031,17.01504062,146.35,146.32,0.14216157]
[1750179397232,16.95659699,146.34,146.32,0.14216157]
[1750179397599,23.79006654,146.34,146.32,0.14216157]
[1750179397904,23.79006654,146.34,146.31,0.14216157]
[1750179398102,16.95659699,146.34,146.31,0.14216157]
[1750179398302,17.01513848,146.35,146.31,0.14216157]
[1750179398516,17.01513848,146.35,146.33,0.14216157]
[1750179398517,10.18210485,146.35,146.33,0.14216157]
[1750179398725,10.18210485,146.35,146.34,35.74840742]
[1750179398921,10.18210485,146.35,146.34,18.79181043]
[1750179399099,10.18210485,146.35,146.34,35.74840742]
[1750179399423,10.18210485,146.35,146.34,18.79181043]
[1750179400912,10.18210485,146.35,146.34,0.14216157]
[1750179401349,27.13870184,146.35,146.34,0.14216157]
[1750179401520,33.97163658,146.35,146.28,18.64964886]
[1750179401832,16.95659699,146.31,146.28,18.64964886]
[1750179402151,16.95659699,146.29,146.2,34.16237688]
[1750179402439,4.96611088,146.32,146.25,26.0]
[1750179402631,16.95659699,146.33,146.28,16.95659699]
[1750179402827,16.95659699,146.33,146.29,0.14216157]
[1750179403441,6.83415045,146.33,146.29,0.14216157]
[1750179403646,23.79074744,146.33,146.31,0.14216157]
[1750179403844,10.18210485,146.35,146.33,0.14216157]
[1750179404019,27.13870184,146.35,146.33,0.14216157]
[1750179404345,16.95659699,146.34,146.33,0.14216157]
[1750179405417,23.78999865,146.34,146.33,0.14216157]
[1750179405847,23.78999865,146.34,146.3,0.14216157]
[1750179406345,6.83340166,146.34,146.3,0.14216157]
[1750179406548,16.95659699,146.32,146.3,0.14216157]
[1750179406843,16.95659699,146.33,146.3,0.14216157]
[1750179407048,16.95659699,146.34,146.3,0.14216157]
[1750179407227,23.79003925,146.34,146.32,0.14216157]
[1750179408351,17.01522163,146.35,146.32,0.14216157]
[1750179408654,10.18210485,146.35,146.32,17.09875856]
[1750179408864,10.18210485,146.35,146.33,18.79181043]
[1750179409048,10.18210485,146.35,146.33,0.14216157]
[1750179409537,17.01511081,146.35,146.33,0.14216157]
[1750179409737,27.13870184,146.35,146.33,0.14216157]
[1750179410444,10.18210485,146.35,146.33,42.58227003]
[1750179410652,10.18210485,146.35,146.33,35.74840742]
[1750179411235,10.18210485,146.35,146.33,25.62556425]
[1750179411447,10.18210485,146.35,146.34,18.79181043]
[1750179411764,10.18210485,146.35,146.34,35.74840742]
[1750179412053,10.18210485,146.35,146.34,42.58180908]
[1750179412264,147.9,146.43,146.35,18.79181043]
[1750179412428,6.82873531,146.44,146.41,18.79181043]
[1750179412622,15.56489577,146.48,146.43,18.79181043]
[1750179412839,16.95659699,146.47,146.43,17.09875856]
[1750179413038,16.95659699,146.46,146.43,18.79181043]
[1750179413226,6.82733665,146.47,146.43,0.14216157]
[1750179413439,23.78509879,146.45,146.43,0.14216157]
[1750179414028,6.8285018,146.45,146.43,0.14216157]
[1750179414252,16.95659699,146.44,146.43,0.14216157]
[1750179414443,23.78509879,146.45,146.43,0.14216157]
[1750179414641,23.78509879,146.45,146.42,0.14216157]
[1750179414950,16.95659699,146.44,146.42,0.14216157]
[1750179415329,6.8285018,146.45,146.42,0.14216157]
[1750179415330,16.95659699,146.43,146.42,0.14216157]
[1750179415645,23.78579865,146.43,146.42,0.14216157]
[1750179416034,40.85880281,146.43,146.36,35.60624585]
[1750179416258,23.90220582,146.43,146.36,35.60624585]
[1750179416473,16.95659699,146.38,146.35,18.64964886]
[1750179416769,16.95659699,146.38,146.36,0.14216157]
[1750179416950,23.90220582,146.43,146.36,0.14216157]
[1750179417145,16.95659699,146.38,146.34,18.64964886]
[1750179417351,16.95659699,146.38,146.34,35.60624585]
[1750179417549,16.95659699,146.38,146.34,0.14216157]
[1750179417760,23.78829667,146.38,146.34,17.09875856]
[1750179417947,6.83169968,146.38,146.34,17.09875856]
[1750179418961,16.95659699,146.35,146.32,18.64964886]
[1750179419161,16.95659699,146.34,146.32,0.14216157]
[1750179419466,16.95659699,146.35,146.32,0.14216157]
[1750179419650,16.95659699,146.34,146.32,0.14216157]
[1750179419846,23.91053558,146.38,146.32,0.14216157]
[1750179420048,16.95659699,146.37,146.32,17.09875856]
[1750179420268,6.83169968,146.38,146.34,0.14216157]
[1750179420471,16.95659699,146.35,146.34,0.14216157]
[1750179420771,23.7896929,146.35,146.31,18.64964886]
[1750179420973,16.95659699,146.32,146.28,18.64964886]
[1750179421272,16.95659699,146.31,146.28,18.64964886]
[1750179421457,16.95659699,146.31,146.29,0.14216157]
[1750179421662,23.91543277,146.35,146.28,18.64964886]
[1750179421663,16.95659699,146.3,146.28,18.64964886]
[1750179421974,16.95659699,146.29,146.22,23.45733934]
[1750179422146,16.95659699,146.24,146.2,26.15659699]
[1750179422351,16.95659699,146.24,146.2,16.03990746]
[1750179422588,16.95659699,146.25,146.2,16.03990746]
[1750179422877,6.83620453,146.28,146.22,16.95659699]
[1750179423045,16.95659699,146.25,146.23,0.14216157]
[1750179423543,1.58,146.33,146.24,16.95659699]
[1750179423750,16.95659699,146.3,146.29,0.14216157]
[1750179424192,16.95659699,146.31,146.29,0.14216157]
[1750179424398,6.1045,146.36,146.29,0.14216157]
[1750179424566,16.95659699,146.3,146.27,18.79181043]
[1750179424996,6.83340166,146.34,146.27,18.79181043]
[1750179425172,6.83307008,146.35,146.31,0.14216157]
[1750179425499,27.58,146.37,146.33,0.14216157]
[1750179425677,16.95659699,146.34,146.33,0.14216157]
[1750179426068,16.95659699,146.34,146.27,0.14216157]
[1750179426280,16.95659699,146.3,146.26,18.64964886]
[1750179426476,16.95659699,146.27,146.25,18.64964886]
[1750179426684,16.95659699,146.27,146.26,0.14216157]
[1750179426893,26.0,146.33,146.24,42.44429897]
[1750179426894,16.95659699,146.28,146.24,42.44429897]
[1750179427067,16.95659699,146.29,146.25,16.95659699]
[1750179427267,16.95659699,146.28,146.24,35.60624585]
[1750179427689,16.95659699,146.27,146.25,0.14216157]
[1750179427904,16.95659699,146.28,146.25,0.14216157]
[1750179428700,16.95659699,146.29,146.25,0.14216157]
[1750179428875,16.95659699,146.28,146.25,0.14216157]
[1750179429493,16.95659699,146.26,146.25,0.14216157]
[1750179429795,6.83586081,146.29,146.24,0.14216157]
[1750179429796,4.99634493,146.28,146.24,0.14216157]
[1750179430002,16.95659699,146.26,146.24,0.14216157]
[1750179430298,16.95659699,146.25,146.21,35.60624585]
[1750179430481,23.92520389,146.29,146.21,35.60624585]
[1750179430482,16.95659699,146.26,146.22,17.09875856]
[1750179430681,16.95659699,146.24,146.21,18.64964886]
[1750179430884,6.83573723,146.29,146.24,18.64964886]
[1750179431093,16.95659699,146.27,146.25,0.14216157]
[1750179431295,21.95065629,146.27,146.25,0.14216157]
[1750179431493,1.665,146.33,146.27,0.14216157]
[1750179431705,30.99403504,146.32,146.27,0.14216157]
[1750179431910,6.83396114,146.33,146.3,16.95659699]
[1750179432200,4.99531954,146.32,146.31,0.14216157]
[1750179432711,4.99531954,146.33,146.31,0.14216157]
[1750179432884,171.69008528,146.34,146.31,0.14216157]
[1750179433079,4.9963736,146.33,146.31,0.14216157]
[1750179433278,16.95659699,146.33,146.31,0.14216157]
[1750179433707,154.73348829,146.34,146.31,0.14216157]
[1750179433906,4.99742268,146.33,146.31,0.14216157]
[1750179434095,147.9,146.34,146.31,18.79181043]
[1750179434289,4.99735199,146.33,146.31,18.79181043]
[1750179434483,171.69012106,146.34,146.31,18.79181043]
[1750179434484,16.95659699,146.32,146.31,18.79181043]
[1750179434693,21.95406339,146.33,146.31,18.79181043]
[1750179434890,16.95659699,146.33,146.31,18.79181043]
[1750179435123,171.69012106,146.34,146.3,35.74840742]
[1750179435395,4.99747768,146.33,146.3,18.79181043]
[1750179435600,16.95659699,146.33,146.3,18.79181043]
[1750179435810,4.99884647,146.32,146.31,35.74840742]
[1750179435981,4.99884647,146.37,146.32,18.79181043]
[1750179436184,2.49964242,146.39,146.36,17.09875856]
[1750179436479,5.00048405,146.38,146.37,35.74840742]
[1750179436878,147.9,146.47,146.38,0.14216157]
[1750179436879,5.00048405,146.4,146.38,0.14216157]
[1750179437096,2.49913556,146.42,146.39,18.64964886]
[1750179437303,4.99818784,146.41,146.39,18.64964886]
[1750179437484,23.78630794,146.42,146.38,0.14216157]
[1750179437685,16.95659699,146.39,146.38,0.14216157]
[1750179437894,21.95469968,146.39,146.38,0.14216157]
[1750179438288,4.99810269,146.39,146.38,0.14216157]
[1750179438494,21.95469968,146.39,146.38,0.14216157]
[1750179438877,21.95270912,146.39,146.35,0.14216157]
[1750179439086,16.95659699,146.37,146.34,18.64964886]
[1750179439404,16.95659699,146.37,146.33,18.64964886]
[1750179439607,16.95659699,146.36,146.33,18.64964886]
[1750179439788,16.95659699,146.37,146.34,0.14216157]
[1750179440190,4.99833448,146.39,146.34,17.09875856]
[1750179440397,23.78825802,146.38,146.36,0.14216157]
[1750179440712,6.82920166,146.43,146.36,0.14216157]
[1750179440887,16.95659699,146.41,146.38,18.79181043]
[1750179441395,16.95659699,146.4,146.38,0.14216157]
[1750179441900,16.95659699,146.39,146.38,0.14216157]
[1750179442307,4.99845783,146.41,146.38,0.14216157]
[1750179442501,16.95659699,146.41,146.38,0.14216157]
[1750179442686,4.9977527,146.41,146.38,0.14216157]
[1750179443017,16.95659699,146.4,146.38,0.14216157]
[1750179443693,4.99749383,146.41,146.38,6.97357183]
[1750179443906,4.99749383,146.42,146.38,6.97357183]
[1750179444107,10.61033243,146.48,146.41,16.95659699]
[1750179444412,27.56692942,146.48,146.44,17.09875856]
[1750179444583,21.95573862,146.47,146.44,18.79181043]
[1750179444786,21.95573862,146.47,146.37,8.26982314]
[1750179444787,16.95659699,146.45,146.39,0.14216157]
[1750179444986,16.95659699,146.42,146.39,0.14216157]
[1750179445216,16.95659699,146.4,146.38,18.64964886]
[1750179445403,16.95659699,146.39,146.35,18.64964886]
[1750179445596,16.95659699,146.39,146.36,0.14216157]
[1750179445784,16.95659699,146.39,146.35,18.64964886]
[1750179445989,7.49763652,146.43,146.35,18.64964886]
[1750179446310,16.95659699,146.39,146.35,35.60624585]
[1750179446489,16.95659699,146.39,146.36,0.14216157]
[1750179446693,16.95659699,146.41,146.38,0.14216157]
[1750179446919,16.95659699,146.42,146.4,0.14216157]
[1750179447288,16.95659699,146.43,146.4,0.14216157]
[1750179447494,26.0,146.44,146.41,18.64964886]
[1750179447495,16.95659699,146.44,146.41,18.64964886]
[1750179447713,16.95659699,146.43,146.41,18.64964886]
[1750179448013,16.95659699,146.42,146.4,0.14216157]
[1750179448195,16.95659699,146.43,146.4,0.14216157]
[1750179448612,16.95659699,146.42,146.4,0.14216157]
[1750179449198,6.82898643,146.44,146.4,0.14216157]
[1750179449199,16.95659699,146.41,146.4,0.14216157]
[1750179449405,16.95659699,146.42,146.4,18.79181043]
[1750179449805,16.95659699,146.42,146.39,6.83105703]
[1750179449806,16.95659699,146.42,146.39,0.14216157]
[1750179450323,16.95659699,146.43,146.39,18.79181043]
[1750179450503,16.95659699,146.4,146.39,18.79181043]
[1750179450700,16.95659699,146.4,146.39,0.14216157]
[1750179450900,16.95659699,146.4,146.37,18.64964886]
[1750179451103,16.95659699,146.41,146.38,0.14216157]
[1750179451604,23.89894161,146.45,146.38,0.14216157]
[1750179451793,4.99589939,146.44,146.43,35.60624585]
[1750179451995,10.61033243,146.48,146.45,0.14216157]
[1750179452209,10.61033243,146.48,146.45,17.09875856]
[1750179452400,16.95659699,146.47,146.45,0.14216157]
[1750179452925,17.43721465,146.48,146.45,0.14216157]
[1750179453091,10.61033243,146.48,146.45,11.89718342]
[1750179453298,10.61033243,146.48,146.46,11.75502185]
[1750179453513,10.61033243,146.48,146.47,18.79181043]
[1750179453925,10.61033243,146.48,146.47,0.14216157]
[1750179455336,10.61033243,146.48,146.47,35.76453227]
[1750179455531,10.61033243,146.48,146.47,18.79181043]
[1750179456415,10.61033243,146.48,146.47,35.76453227]
[1750179457019,10.61033243,146.48,146.47,35.6223707]
[1750179457227,10.61033243,146.48,146.47,42.44970735]
[1750179457429,16.97272184,146.53,146.48,18.64964886]
[1750179457679,16.97272184,146.53,146.49,16.97272184]
[1750179457845,16.97272184,146.53,146.5,18.64964886]
[1750179458137,4.98015092,146.53,146.47,35.6223707]
[1750179458341,16.97272184,146.52,146.47,35.6223707]
[1750179458712,16.97272184,146.5,146.47,18.64964886]
[1750179458933,23.79877757,146.5,146.48,0.14216157]
[1750179459238,23.79836315,146.51,146.48,0.14216157]
[1750179459436,6.82564131,146.51,146.48,0.14216157]
[1750179459643,32.82426753,146.54,146.5,18.79181043]
[1750179459944,16.97272184,146.57,146.52,35.76453227]
[1750179460134,23.79449332,146.59,146.54,17.11488341]
[1750179460440,17.4233336,146.6,146.58,18.79181043]
[1750179460613,34.39605544,146.6,146.58,18.79181043]
[1750179460818,16.97272184,146.59,146.51,0.14216157]
[1750179461031,16.97272184,146.55,146.51,42.58999102]
[1750179461446,23.79590425,146.56,146.51,42.58999102]
[1750179461759,16.97272184,146.56,146.51,42.58999102]
[1750179461932,16.97272184,146.56,146.53,18.79181043]
[1750179462252,26.0,146.59,146.55,18.79181043]
[1750179462253,16.97272184,146.58,146.55,18.79181043]
[1750179462448,10.60192721,146.6,146.55,18.79181043]
[1750179462619,26.0,146.59,146.55,0.14216157]
[1750179462820,42.97272184,146.59,146.55,17.11488341]
[1750179463051,42.97272184,146.59,146.55,18.79181043]
[1750179463229,32.82209452,146.59,146.55,18.79181043]
[1750179463554,23.79454408,146.59,146.55,18.79181043]
[1750179464226,16.97272184,146.58,146.55,18.79181043]
[1750179464737,23.79454408,146.59,146.56,0.14216157]
[1750179464938,10.60192721,146.6,146.56,0.14216157]
[1750179465190,16.97272184,146.58,146.56,0.14216157]
[1750179465345,17.42334043,146.6,146.56,18.79181043]
[1750179465549,27.57464905,146.6,146.56,42.58756671]
[1750179465846,16.97272184,146.58,146.56,0.14216157]
[1750179466145,16.97272184,146.59,146.56,0.14216157]
[1750179466336,10.60192721,146.6,146.56,17.11488341]
[1750179466539,34.39607195,146.6,146.58,0.14216157]
[1750179466724,16.97272184,146.59,146.58,0.14216157]
[1750179466919,23.79446957,146.59,146.58,0.14216157]
[1750179467125,6.82174773,146.59,146.58,0.14216157]
[1750179467323,23.79446957,146.59,146.58,0.14216157]
[1750179467716,26.0,146.56,146.47,6.82733665]
[1750179467921,26.0,146.56,146.47,23.80005849]
[1750179468243,26.0,146.56,146.48,18.79181043]
[1750179468244,16.97272184,146.54,146.48,18.79181043]
[1750179468555,16.97272184,146.54,146.51,18.79181043]
[1750179468856,26.0,146.56,146.5,16.97272184]
[1750179468857,16.97272184,146.53,146.5,18.64964886]
[1750179469583,6.82360968,146.55,146.49,0.14216157]
[1750179469789,16.97272184,146.52,146.48,35.6223707]
[1750179469976,16.97272184,146.5,146.45,1.5324]
[1750179470190,26.0,146.53,146.44,18.64964886]
[1750179470191,16.97272184,146.48,146.44,18.64964886]
[1750179470373,16.97272184,146.5,146.46,16.97272184]
[1750179470697,16.97272184,146.5,146.47,18.64964886]
[1750179470867,26.28432314,146.53,146.44,42.45110601]
[1750179470868,16.97272184,146.48,146.44,42.45110601]
[1750179471063,16.97272184,146.5,146.46,35.6223707]
[1750179471264,16.97272184,146.5,146.47,0.14216157]
[1750179471470,16.97272184,146.5,146.46,16.97272184]
[1750179471797,16.97272184,146.49,146.46,18.64964886]
[1750179472088,16.97272184,146.49,146.45,16.97272184]
[1750179472089,16.97272184,146.47,146.44,18.64964886]
[1750179472293,16.97272184,146.48,146.44,35.6223707]
[1750179472453,16.97272184,146.48,146.45,0.14216157]
[1750179472649,16.97272184,146.47,146.45,0.14216157]